bitfinex-derivatives/quotes_BTCF0:USTF0_20250324
["timestamp","ask_amount","ask_price","bid_price","bid_amount"]
[1742848834517,0.1135197,88071.0,88070.0,0.3459385]
[1742848834518,0.1147997,88071.0,88070.0,0.3459385]
[1742848834714,0.25466823,88071.0,88070.0,0.3459385]
[1742848834908,0.25466823,88071.0,88070.0,0.36046366]
[1742848835509,0.25466823,88071.0,88070.0,0.39286366]
[1742848835510,0.28506823,88071.0,88070.0,0.39286366]
[1742848836714,0.28506823,88071.0,88070.0,0.27934516]
[1742848837416,0.28506823,88071.0,88070.0,0.39286616]
[1742848837819,0.28506823,88071.0,88070.0,0.378341]
[1742848838218,0.28506823,88071.0,88070.0,0.26482]
[1742848838607,0.28506823,88071.0,88070.0,0.378341]
[1742848838815,0.29616437,88071.0,88070.0,0.378341]
[1742848839214,0.29616437,88071.0,88070.0,0.27984491]
[1742848839425,0.29616437,88071.0,88070.0,0.26482]
[1742848840310,0.29616437,88071.0,88070.0,0.1549]
[1742848840515,0.29616437,88071.0,88070.0,0.268421]
[1742848841111,0.29616437,88071.0,88070.0,0.1549]
[1742848845125,0.35135591,88071.0,88070.0,0.1549]
[1742848845426,0.0567592,88072.0,88070.0,0.1549]
[1742848845427,0.20369688,88076.0,88075.0,0.1135146]
[1742848845819,0.0308,88087.0,88086.0,0.1135004]
[1742848846021,0.15618932,88087.0,88086.0,0.2935004]
[1742848846313,0.18728932,88087.0,88086.0,0.1806]
[1742848846617,0.27895837,88087.0,88086.0,0.1806]
[1742848846821,0.30935837,88087.0,88086.0,0.1806]
[1742848848117,0.31035837,88087.0,88086.0,0.1806]
[1742848848520,0.31035837,88087.0,88086.0,0.0006]
[1742848848718,0.1135017,88085.0,88084.0,0.0953]
[1742848849020,0.1143417,88085.0,88084.0,0.14614]
[1742848849221,0.1758417,88085.0,88084.0,0.14614]
[1742848849426,0.26957286,88085.0,88084.0,0.14614]
[1742848850626,0.27057286,88085.0,88084.0,0.14614]
[1742848851023,0.27257286,88085.0,88084.0,0.00084]
[1742848851331,0.27257286,88085.0,88076.0,0.0331]
[1742848851332,0.113512,88077.0,88076.0,0.0642]
[1742848851529,0.114432,88077.0,88076.0,0.0648]
[1742848851828,0.208632,88077.0,88076.0,0.0648]
[1742848852025,0.31061252,88077.0,88076.0,0.0648]
[1742848852235,0.31061252,88077.0,88076.0,0.0337]
[1742848853324,0.31061252,88077.0,88067.0,0.0567621]
[1742848853325,0.1135287,88064.0,88063.0,0.00045422]
[1742848853526,0.1135429,88053.0,88052.0,0.27009826]
[1742848853830,0.1135494,88048.0,88047.0,0.0004543]
[1742848854129,0.12534988,88048.0,88047.0,0.0010543]
[1742848854526,0.23892493,88048.0,88047.0,0.0010543]
[1742848854829,0.23892493,88048.0,88030.0,0.4121]
[1742848854830,0.27537553,88048.0,88016.0,0.4121]
[1742848855123,0.27537553,88048.0,88022.0,0.3642467]
[1742848855124,0.1135816,88023.0,88022.0,0.3642467]
[1742848855330,0.11478161,88023.0,88022.0,0.3642467]
[1742848855729,0.58917279,88023.0,88022.0,0.3642467]
[1742848856116,0.58917279,88023.0,88022.0,0.37886536]
[1742848857225,0.58917279,88023.0,88022.0,0.3562467]
[1742848857530,0.65187279,88023.0,88022.0,0.3562467]
[1742848858037,0.65187279,88023.0,88015.0,0.00045447]
[1742848858038,0.1135907,88016.0,88015.0,0.00045447]
[1742848858330,0.11499071,88016.0,88015.0,0.00105447]
[1742848858527,0.11499071,88016.0,88015.0,0.00045447]
[1742848858734,0.22860706,88016.0,88015.0,0.00045447]
[1742848859030,0.29130706,88016.0,88015.0,0.00045447]
[1742848860323,0.1135958,88012.0,88011.0,0.0635]
[1742848860520,0.4758758,88012.0,88011.0,0.0641]
[1742848860721,0.4758758,88012.0,88011.0,0.0635]
[1742848860920,0.58949215,88012.0,88011.0,0.0641]
[1742848862232,0.11509635,88012.0,88011.0,0.1776971]
[1742848862435,0.11509635,88012.0,88011.0,0.5384971]
[1742848862436,0.00148,88012.0,88011.0,0.5384971]
[1742848862626,0.0567967,88014.0,88013.0,0.170389]
[1742848862939,0.0567967,88014.0,88013.0,0.170989]
[1742848863129,0.05819671,88014.0,88013.0,0.170989]
[1742848864025,0.05819671,88014.0,88013.0,0.0573971]
[1742848864634,0.05819671,88014.0,88013.0,0.0006]
[1742848865033,0.05819671,88014.0,88013.0,0.1141945]
[1742848865228,0.05819671,88014.0,88013.0,0.1775945]
[1742848869523,0.53261564,88014.0,88013.0,0.064]
[1742848869737,0.56461564,88014.0,88013.0,0.064]
[1742848870832,0.53261564,88014.0,88013.0,0.064]
[1742848872926,0.59571564,88014.0,88013.0,0.0634]
[1742848873125,0.59571564,88014.0,88013.0,0.064]
[1742848873940,0.59571564,88014.0,88013.0,0.0634]
[1742848874131,0.59571564,88014.0,88013.0,0.00064]
[1742848874331,0.59571564,88014.0,88007.0,0.0322]
[1742848874332,0.113601,88008.0,88007.0,0.0322]
[1742848874531,0.115081,88008.0,88007.0,0.0328]
[1742848874932,0.22869993,88008.0,88007.0,0.0328]
[1742848875140,0.22869993,88008.0,88003.0,0.1136074]
[1742848875141,0.1136061,88004.0,88003.0,0.1136074]
[1742848875333,0.11516611,88004.0,88003.0,0.1136074]
[1742848875734,0.1136074,88003.0,88002.0,0.1136077]
[1742848875940,0.11520741,88003.0,88002.0,0.1136077]
[1742848876329,0.22883925,88003.0,88002.0,0.1136077]
[1742848877729,0.28564355,88003.0,88000.0,0.195105]
[1742848877931,0.11361,88001.0,88000.0,0.3087156]
[1742848878133,0.11517001,88001.0,88000.0,0.3087156]
[1742848878337,0.11517001,88001.0,88000.0,0.1714]
[1742848878642,0.22880572,88001.0,88000.0,0.18606998]
[1742848878937,0.29220572,88001.0,88000.0,0.18606998]
[1742848879342,0.29220572,88001.0,88000.0,0.1714]
[1742848881036,0.29220572,88001.0,88000.0,0.18620251]
[1742848881333,0.0568091,87995.0,87988.0,0.027243]
[1742848881541,0.17198881,87995.0,87994.0,0.1136166]
[1742848881740,0.17198881,87995.0,87994.0,0.2236166]
[1742848882045,0.2963548,87995.0,87994.0,0.2236166]
[1742848882633,0.2963548,87995.0,87994.0,0.11]
[1742848883238,0.2963548,87995.0,87994.0,0.12546575]
[1742848883650,0.3266548,87995.0,87994.0,0.12546575]
[1742848884342,0.1136268,87988.0,87987.0,0.0659]
[1742848884542,0.4744268,87988.0,87987.0,0.0659]
[1742848884747,0.47602681,87988.0,87987.0,0.0659]
[1742848884943,0.53892681,87988.0,87987.0,0.1795281]
[1742848885252,0.65257027,87988.0,87987.0,0.1795281]
[1742848885440,0.65257027,87988.0,87987.0,0.0659]
[1742848886235,0.65257027,87988.0,87987.0,0.0323]
[1742848887340,0.1136294,87986.0,87985.0,0.0307]
[1742848887546,0.113632,87984.0,87983.0,0.00045463]
[1742848887748,0.00156001,87984.0,87983.0,0.79170453]
[1742848887942,0.05524498,87988.0,87987.0,0.1136281]
[1742848888148,0.05524498,87988.0,87987.0,0.3236281]
[1742848888342,0.05524498,87988.0,87987.0,0.21]
[1742848888647,0.17045749,87988.0,87987.0,0.21]
[1742848888838,0.17045749,87988.0,87987.0,0.3236281]
[1742848889044,0.28408429,87988.0,87987.0,0.3236281]
[1742848889347,0.17045749,87988.0,87987.0,0.3846281]
[1742848890145,0.17045749,87988.0,87987.0,0.271]
[1742848890146,0.28408429,87988.0,87987.0,0.271]
[1742848890546,0.28408429,87988.0,87987.0,0.3846281]
[1742848890747,0.17045749,87988.0,87987.0,0.3846281]
[1742848891648,0.28408429,87988.0,87987.0,0.3846281]
[1742848891854,0.22883931,87988.0,87987.0,0.3846281]
[1742848892362,0.11521251,87988.0,87987.0,0.3846281]
[1742848892563,0.22883931,87988.0,87987.0,0.271]
[1742848892768,0.22883931,87988.0,87987.0,0.061]
[1742848893059,0.26093931,87988.0,87987.0,0.061]
[1742848893257,0.29123931,87988.0,87987.0,0.061]
[1742848893466,0.29123931,87988.0,87987.0,0.07554498]
[1742848894458,0.17761251,87988.0,87987.0,0.18917308]
[1742848894659,0.26093931,87988.0,87987.0,0.07554498]
[1742848895458,0.26093931,87988.0,87987.0,0.061]
[1742848895653,0.14731251,87988.0,87987.0,0.1746281]
[1742848896064,0.26093931,87988.0,87987.0,0.1746281]
[1742848897771,0.26093931,87988.0,87987.0,0.2075281]
[1742848897958,0.26093931,87988.0,87987.0,0.0939]
[1742848898268,0.31618267,87988.0,87987.0,0.0939]
[1742848900162,0.05680337,87988.0,87987.0,0.3475281]
[1742848900368,0.05680337,87988.0,87987.0,0.2975281]
[1742848900565,0.17045587,87988.0,87987.0,0.1839]
[1742848900870,0.28408267,87988.0,87987.0,0.2975281]
[1742848901071,0.28408267,87988.0,87987.0,0.1839]
[1742848901269,0.31628267,87988.0,87987.0,0.0939]
[1742848905165,0.34938267,87988.0,87987.0,0.0939]
[1742848905470,0.23575587,87988.0,87987.0,0.0939]
[1742848905773,0.23575587,87988.0,87987.0,0.2075281]
[1742848905774,0.20265587,87988.0,87987.0,0.2075281]
[1742848906875,0.31628267,87988.0,87987.0,0.0939]
[1742848907071,0.31628267,87988.0,87987.0,0.2075281]
[1742848907072,0.05680337,87988.0,87987.0,0.2075281]
[1742848907272,0.05680337,87988.0,87987.0,0.0939]
[1742848907575,0.17043017,87988.0,87987.0,0.0939]
[1742848907969,0.28408267,87988.0,87987.0,0.0939]
[1742848908277,0.34748267,87988.0,87987.0,0.0939]
[1742848910773,0.34748267,87988.0,87987.0,0.2075281]
[1742848910966,0.113632,87984.0,87983.0,0.00045463]
[1742848911273,0.1136513,87969.0,87968.0,0.0334]
[1742848911477,0.47601131,87969.0,87968.0,0.0334]
[1742848911780,0.1136526,87968.0,87967.0,0.20428586]
[1742848911977,0.17791261,87968.0,87967.0,0.20428586]
[1742848912272,0.29157028,87968.0,87967.0,0.20428586]
[1742848913779,0.29157028,87968.0,87954.0,0.0333]
[1742848913780,0.1136694,87955.0,87954.0,0.0333]
[1742848914074,0.47602941,87955.0,87954.0,0.0333]
[1742848914469,0.58970775,87955.0,87954.0,0.0333]
[1742848914670,0.65480775,87955.0,87954.0,0.0333]
[1742848915275,0.65480775,87955.0,87954.0,0.16146755]
[1742848915475,0.54113835,87955.0,87954.0,0.16146755]
[1742848915871,0.65480775,87955.0,87954.0,0.04779685]
[1742848916479,0.66353719,87955.0,87954.0,0.04779685]
[1742848916978,0.66353719,87955.0,87954.0,0.0333]
[1742848917675,0.48476779,87955.0,87954.0,0.1469707]
[1742848918174,0.59843719,87955.0,87954.0,0.0333]
[1742848918384,0.63003719,87955.0,87954.0,0.04790296]
[1742848919486,0.63003719,87955.0,87954.0,0.16157366]
[1742848919686,0.48476779,87955.0,87954.0,0.16157366]
[1742848919886,0.59843719,87955.0,87954.0,0.16157366]
[1742848920284,0.48476779,87955.0,87954.0,0.16157366]
[1742848920485,0.36236001,87955.0,87954.0,0.28157366]
[1742848920684,0.00156001,87955.0,87954.0,0.76360335]
[1742848920988,0.13483865,87959.0,87958.0,0.1136656]
[1742848921186,0.13643866,87959.0,87958.0,0.1736656]
[1742848921573,0.6109338,87959.0,87958.0,0.1736656]
[1742848921778,0.6109338,87959.0,87958.0,0.2078656]
[1742848923382,0.62215779,87959.0,87958.0,0.2078656]
[1742848923589,0.58832724,87959.0,87958.0,0.2078656]
[1742848923979,0.57710325,87959.0,87958.0,0.2078656]
[1742848924386,0.46340811,87959.0,87958.0,0.2078656]
[1742848925583,0.46340811,87959.0,87958.0,0.2190044]
[1742848925584,0.04261631,87959.0,87958.0,0.2190044]
[1742848925892,0.3608,87981.0,87969.0,0.1136513]
[1742848926187,0.11796832,87970.0,87969.0,0.4943713]
[1742848926580,0.06626832,87970.0,87969.0,0.5261713]
[1742848927481,0.00017052,87976.0,87975.0,0.1136436]
[1742848927689,0.00017052,87976.0,87975.0,0.3542436]
[1742848929188,0.00017052,87976.0,87975.0,0.3876436]
[1742848929781,0.00017052,87976.0,87975.0,0.4215436]
[1742848931091,0.0328,87985.0,87984.0,0.113632]
[1742848931391,0.03356,87985.0,87984.0,0.224152]
[1742848931784,0.14721638,87985.0,87984.0,0.224152]
[1742848931978,0.14721638,87985.0,87984.0,0.290752]
[1742848933582,0.14721638,87985.0,87984.0,0.30180537]
[1742848933780,0.0329,87991.0,87990.0,0.1136242]
[1742848933997,0.06572,87991.0,87990.0,0.1142642]
[1742848934184,0.09952,87991.0,87990.0,0.1142642]
[1742848934385,0.21317638,87991.0,87990.0,0.1142642]
[1742848936790,0.21317638,87991.0,87990.0,0.1742642]
[1742848936998,0.21317638,87991.0,87990.0,0.2388642]
[1742848937287,0.00017052,87993.0,87992.0,0.1136216]
[1742848937495,0.20225798,88006.0,88005.0,0.1136049]
[1742848937692,0.20285799,88006.0,88005.0,0.4943249]
[1742848937894,0.07640424,88015.0,88011.0,0.0567983]
[1742848938092,0.06614,88015.0,88014.0,0.1135932]
[1742848938294,0.17978604,88015.0,88014.0,0.2243532]
[1742848938484,0.14858604,88015.0,88014.0,0.2243532]
[1742848938684,0.14858604,88015.0,88014.0,0.2743532]
[1742848938891,0.11448604,88015.0,88014.0,0.2743532]
[1742848939089,0.00084,88015.0,88014.0,0.2743532]
[1742848941300,0.23637018,88021.0,88020.0,0.1135855]
[1742848941490,0.23753018,88021.0,88020.0,0.3747055]
[1742848941895,0.23753018,88021.0,88020.0,0.4747055]
[1742848942097,0.23753018,88021.0,88020.0,0.5415055]
[1742848943197,0.00116,88021.0,88020.0,0.5415055]
[1742848943392,0.0004,88024.0,88022.0,0.1135829]
[1742848943593,0.0004,88024.0,88022.0,0.7355029]
[1742848947301,0.22735943,88023.0,88022.0,0.00112]
[1742848947501,0.65725944,88023.0,88022.0,0.00112]
[1742848948000,0.66839556,88023.0,88022.0,0.00112]
[1742848953411,0.66839556,88023.0,88018.0,0.10992]
[1742848953412,0.1135868,88019.0,88018.0,0.10992]
[1742848953608,0.11470681,88019.0,88018.0,0.11104]
[1742848953802,0.17830681,88019.0,88018.0,0.11104]
[1742848954201,0.29191412,88019.0,88018.0,0.2246281]
[1742848955209,0.29191412,88019.0,88018.0,0.11104]
[1742848955512,0.29191412,88019.0,88018.0,0.2243579]
[1742848955718,0.29191412,88019.0,88018.0,0.2244379]
[1742848957809,0.32511412,88019.0,88018.0,0.2244379]
[1742848959814,0.21152732,88019.0,88018.0,0.2244379]
[1742848961004,0.32512502,88019.0,88018.0,0.2244379]
[1742848962919,0.32512502,88019.0,88018.0,0.2553379]
[1742848965415,0.21152732,88019.0,88018.0,0.2553379]
[1742848966717,0.21152732,88019.0,88018.0,0.2550179]
[1742848970012,0.32512542,88019.0,88018.0,0.14142]
[1742848971010,0.32512542,88019.0,88018.0,0.2550194]
[1742848971211,0.32512542,88019.0,88018.0,0.2887194]
[1742848972322,0.32512542,88019.0,88018.0,0.17512]
[1742848973822,0.32512542,88019.0,88018.0,0.2887194]
[1742848974717,0.32512542,88019.0,88018.0,0.17512]
[1742848975022,0.32512542,88019.0,88018.0,0.2887194]
[1742848975919,0.32512542,88019.0,88018.0,0.17512]
[1742848977220,0.1136136,88007.0,87993.0,0.1136309]
[1742848977421,0.1136136,88007.0,87989.0,0.4121]
[1742848977422,0.4750536,88007.0,87999.0,0.0333]
[1742848977822,0.68698157,88007.0,87999.0,0.0333]
[1742848978615,0.68698157,88007.0,88003.0,0.0568093]
[1742848978925,0.68698157,88007.0,88000.0,0.0347]
[1742848979122,0.68698157,88007.0,88006.0,0.00093052]
[1742848979327,0.68698157,88007.0,88006.0,0.00017052]
[1742848979623,0.74221359,88007.0,88006.0,0.00017052]
[1742848983724,0.74221359,88007.0,88006.0,0.00093052]
[1742848983925,0.74221359,88007.0,88006.0,0.00017052]
[1742848984425,0.74221359,88007.0,88006.0,0.00093052]
[1742848989838,0.74221359,88007.0,88006.0,0.00017052]
[1742848990038,0.74221359,88007.0,88006.0,0.00093052]
[1742848990538,0.74221359,88007.0,88006.0,0.00017052]
[1742848991444,0.74221359,88007.0,88006.0,0.00093052]
[1742848992237,1.10301359,88007.0,88006.0,0.00093052]
[1742848992431,1.10301359,88007.0,88006.0,0.00017052]
[1742849005546,1.10296038,88007.0,88006.0,0.00017052]
[1742849008958,0.74216038,88007.0,88006.0,0.00017052]
[1742849009955,0.94426534,88007.0,88006.0,0.00017052]
[1742849013450,1.30506534,88007.0,88006.0,0.00017052]
[1742849014365,1.26480572,88007.0,88006.0,0.00017052]
[1742849018163,0.0568211,87986.0,87977.0,0.00170482]
[1742849018362,0.1136433,87984.0,87983.0,0.11489663]
[1742849018555,0.1144033,87984.0,87983.0,0.22409663]
[1742849019256,0.1144033,87984.0,87983.0,0.11045463]
[1742849019462,0.1518033,87984.0,87983.0,0.22409923]
[1742849020254,0.1518033,87984.0,87983.0,0.29879923]
[1742849022665,0.20703532,87984.0,87983.0,0.29879923]
[1742849023256,0.56783532,87984.0,87983.0,0.29879923]
[1742849023566,0.71989299,87984.0,87983.0,0.07595463]
[1742849023866,0.71989299,87984.0,87983.0,0.07591463]
[1742849024053,0.71989299,87984.0,87983.0,0.07515463]
[1742849024258,0.71989299,87984.0,87983.0,0.07591463]
[1742849026359,0.71989299,87984.0,87983.0,0.03791463]
[1742849026559,0.71989299,87984.0,87983.0,0.03715463]
[1742849026759,0.71989299,87984.0,87983.0,0.00045463]
[1742849027555,0.1136511,87978.0,87977.0,0.00170482]
[1742849027760,0.11425111,87978.0,87977.0,0.00170482]
[1742849027957,0.11425111,87978.0,87977.0,0.03830482]
[1742849028158,0.19185111,87978.0,87977.0,0.03906482]
[1742849028365,0.30551653,87978.0,87977.0,0.03906482]
[1742849028663,0.30551653,87978.0,87977.0,0.0366]
[1742849029459,0.19186543,87978.0,87968.0,0.09793271]
[1742849029663,0.4744627,87969.0,87968.0,0.21235671]
[1742849029867,0.4752227,87969.0,87968.0,0.114424]
[1742849030067,0.4752227,87969.0,87968.0,0.00076]
[1742849030258,0.58889394,87969.0,87968.0,0.00076]
[1742849030453,0.69949394,87969.0,87968.0,0.113664]
[1742849030658,0.113664,87968.0,87967.0,0.10965471]
[1742849030867,0.114424,87968.0,87967.0,0.22041471]
[1742849031058,0.188724,87968.0,87967.0,0.22041471]
[1742849031261,0.30240105,87968.0,87967.0,0.22041471]
[1742849032267,0.30240105,87968.0,87967.0,0.11121471]
[1742849032465,0.30240105,87968.0,87967.0,0.00121471]
[1742849032662,0.30240105,87968.0,87967.0,0.00045471]
[1742849032863,0.30240105,87968.0,87967.0,0.00129471]
[1742849034868,0.30240105,87968.0,87967.0,0.07295471]
[1742849035259,0.30240105,87968.0,87967.0,0.07371471]
[1742849036163,0.11443705,87968.0,87967.0,0.66818001]
[1742849036463,0.13507487,87970.0,87969.0,0.1136627]
[1742849036666,0.13607487,87970.0,87969.0,0.3546227]
[1742849036965,0.13507487,87970.0,87969.0,1.11606205]
[1742849037156,0.13507487,87970.0,87969.0,1.19206205]
[1742849038156,0.13507487,87970.0,87969.0,0.44206205]
[1742849038669,0.13603488,87970.0,87969.0,0.44206205]
[1742849038866,0.13507487,87970.0,87969.0,0.44206205]
[1742849039167,0.0757,87976.0,87975.0,0.113655]
[1742849039372,0.07666001,87976.0,87975.0,0.114615]
[1742849039971,0.30398947,87976.0,87975.0,0.03946]
[1742849040164,0.1136588,87972.0,87971.0,0.0374]
[1742849040370,0.11461881,87972.0,87971.0,0.03836]
[1742849040569,0.11461881,87972.0,87971.0,0.1905201]
[1742849040570,0.00096001,87972.0,87971.0,0.1905201]
[1742849040866,0.11462801,87972.0,87971.0,0.1905201]
[1742849041274,0.19322801,87972.0,87971.0,0.1905201]
[1742849043779,0.19322801,87972.0,87971.0,0.07686]
[1742849044279,0.19322801,87972.0,87971.0,0.1905201]
[1742849044671,0.30688681,87972.0,87971.0,0.07686]
[1742849045168,0.19322801,87972.0,87971.0,0.07686]
[1742849045375,0.19322801,87972.0,87971.0,0.1905201]
[1742849045569,0.30688681,87972.0,87971.0,0.07686]
[1742849045769,0.30688681,87972.0,87971.0,0.1905201]
[1742849046069,0.19322801,87972.0,87971.0,0.1905201]
[1742849046274,0.19322801,87972.0,87971.0,0.2997201]
[1742849046477,0.19322801,87972.0,87971.0,0.18606]
[1742849046775,0.19322801,87972.0,87971.0,0.2997201]
[1742849046959,0.30688681,87972.0,87971.0,0.18606]
[1742849047163,0.19322801,87972.0,87971.0,0.18606]
[1742849047366,0.30688681,87972.0,87971.0,0.18606]
[1742849049486,0.19322801,87972.0,87971.0,0.1905201]
[1742849049873,0.19322801,87972.0,87971.0,0.2997201]
[1742849052967,0.30688681,87972.0,87971.0,0.2997201]
[1742849053570,0.11462801,87972.0,87971.0,0.7905201]
[1742849053771,0.0387,87977.0,87976.0,0.1136537]
[1742849053969,0.0387,87977.0,87976.0,0.3549337]
[1742849054576,0.0739,87977.0,87976.0,0.3549337]
[1742849054773,0.07514001,87977.0,87976.0,0.3549337]
[1742849055976,0.07514001,87977.0,87976.0,0.4641337]
[1742849056374,0.0739,87977.0,87976.0,0.4641337]
[1742849056673,0.07514001,87977.0,87976.0,0.4641337]
[1742849057675,0.07514001,87977.0,87976.0,0.47523603]
[1742849057875,0.08270886,87977.0,87976.0,0.47523603]
[1742849058383,0.04750886,87977.0,87976.0,0.47523603]
[1742849058782,0.18360386,87977.0,87976.0,0.47523603]
[1742849061581,0.18360386,87977.0,87976.0,0.4641337]
[1742849062176,0.18360386,87977.0,87976.0,0.00128]
[1742849062476,0.64567304,87977.0,87976.0,0.00128]
[1742849062782,0.0568281,87974.0,87970.0,0.1136607]
[1742849062983,0.1136601,87971.0,87970.0,0.1136607]
[1742849063283,0.12306517,87971.0,87970.0,0.2241007]
[1742849063583,0.08970507,87971.0,87970.0,0.2241007]
[1742849063782,0.09851393,87971.0,87970.0,0.2241007]
[1742849063973,0.09851017,87971.0,87970.0,0.2241007]
[1742849065383,0.21217027,87971.0,87970.0,0.2241007]
[1742849066674,0.09851017,87971.0,87970.0,0.2241007]
[1742849069777,0.25855246,87971.0,87970.0,0.2241007]
[1742849069984,0.26739502,87971.0,87970.0,0.2241007]
[1742849070977,0.26739502,87971.0,87970.0,0.6349007]
[1742849071288,0.22669502,87971.0,87970.0,0.6349007]
[1742849071679,0.22669502,87971.0,87970.0,0.6740007]
[1742849071886,0.22672845,87971.0,87970.0,0.6740007]
[1742849072576,0.22672845,87971.0,87970.0,0.7113007]
[1742849074284,0.15917069,87971.0,87970.0,0.7113007]
[1742849075483,0.1502947,87971.0,87970.0,0.7113007]
[1742849076776,0.1502947,87971.0,87970.0,0.6021007]
[1742849076985,0.1502947,87971.0,87970.0,0.6613407]
[1742849077581,0.04900887,87971.0,87970.0,0.6613407]
[1742849077787,0.04900887,87971.0,87970.0,0.3005407]
[1742849078179,0.04900887,87971.0,87970.0,0.3005807]
[1742849078389,0.04900887,87971.0,87970.0,0.18692]
[1742849078580,0.04900887,87971.0,87970.0,0.2614814]
[1742849078780,0.04900887,87971.0,87970.0,0.2241814]
[1742849079392,0.04900887,87971.0,87970.0,0.3041814]
[1742849079587,0.04900887,87971.0,87970.0,0.3428814]
[1742849081287,0.04900887,87971.0,87970.0,0.2730014]
[1742849081486,0.04900887,87971.0,87970.0,0.3822414]
[1742849083379,0.04900887,87971.0,87970.0,0.3041814]
[1742849083702,0.04900887,87971.0,87970.0,0.2241814]
[1742849083887,0.04900887,87971.0,87970.0,0.2241414]
[1742849085889,0.04900887,87971.0,87970.0,0.11048]
[1742849086193,0.04900887,87971.0,87970.0,0.2241414]
[1742849086995,0.04020001,87971.0,87970.0,0.2631414]
[1742849087595,0.04020001,87971.0,87970.0,0.3131414]
[1742849087802,0.04020001,87971.0,87970.0,0.2631414]
[1742849087991,0.04020001,87971.0,87970.0,0.3027414]
[1742849092700,0.04084001,87971.0,87970.0,0.8035414]
[1742849093195,0.04084001,87971.0,87970.0,1.5535414]
[1742849093395,0.0396,87971.0,87970.0,1.5535414]
[1742849093786,0.0396,87971.0,87970.0,0.8035414]
[1742849093992,0.04088,87971.0,87970.0,0.8035414]
[1742849094391,0.0396,87971.0,87970.0,0.8035414]
[1742849094689,0.04096,87971.0,87970.0,0.8035414]
[1742849095496,0.04096,87971.0,87970.0,0.6943014]
[1742849095695,0.04096,87971.0,87970.0,0.8035814]
[1742849095892,0.04084001,87971.0,87970.0,0.8035814]
[1742849098796,0.04084001,87971.0,87970.0,0.50204]
[1742849098995,0.0568359,87962.0,87958.0,0.20370762]
[1742849099298,0.1136754,87960.0,87959.0,0.1092]
[1742849099499,0.12550602,87960.0,87959.0,0.11008]
[1742849100103,0.16200602,87960.0,87959.0,0.31378762]
[1742849100291,0.2756947,87960.0,87959.0,0.31378762]
[1742849100705,0.1136821,87954.0,87953.0,0.27202166]
[1742849100907,0.4751221,87954.0,87953.0,0.27266166]
[1742849101102,0.4751221,87954.0,87948.0,0.3608]
[1742849101103,0.056842,87953.0,87936.0,0.0387]
[1742849101406,0.4745002,87940.0,87939.0,0.40531523]
[1742849101597,0.4752202,87940.0,87939.0,0.40531523]
[1742849101997,0.58891664,87940.0,87939.0,0.40531523]
[1742849104208,0.58891664,87940.0,87939.0,0.00076]
[1742849104707,0.67494129,87940.0,87939.0,0.00076]
[1742849105104,0.56124109,87940.0,87939.0,0.00076]
[1742849105610,0.67494129,87940.0,87939.0,0.00076]
[1742849105798,0.56124109,87940.0,87939.0,0.00076]
[1742849106199,0.36152,87940.0,87939.0,0.1744615]
[1742849106400,0.36152,87940.0,87939.0,0.1743015]
[1742849106706,0.36152,87940.0,87939.0,0.2482015]
[1742849109898,0.36152,87940.0,87939.0,0.25963991]
[1742849112307,0.36152,87940.0,87939.0,0.36899991]
[1742849112507,0.00072,87940.0,87939.0,0.62043991]
[1742849112811,0.00838089,87959.0,87958.0,0.1136769]
[1742849113109,0.11748214,87961.0,87960.0,0.1136743]
[1742849113308,0.11748214,87961.0,87960.0,0.3943143]
[1742849113309,0.11816214,87961.0,87960.0,0.3943143]
[1742849113514,0.11748214,87961.0,87960.0,0.3943143]
[1742849113999,0.11748214,87961.0,87960.0,0.40298939]
[1742849115501,0.11748214,87961.0,87960.0,0.3943143]
[1742849115705,0.12631427,87961.0,87960.0,0.5037943]
[1742849115910,0.13593762,87961.0,87960.0,0.5037943]
[1742849116410,0.01845548,87961.0,87960.0,0.5789343]
[1742849116598,0.01845548,87961.0,87960.0,0.4694143]
[1742849116804,0.01845548,87961.0,87960.0,0.11016]
[1742849116805,0.24581597,87961.0,87960.0,0.11016]
[1742849117107,0.24581597,87961.0,87960.0,0.10956]
[1742849117414,0.1136795,87956.0,87955.0,0.10956]
[1742849117606,0.12311164,87956.0,87955.0,0.10956]
[1742849117811,0.00060001,87956.0,87955.0,0.10956]
[1742849118007,0.15957075,87956.0,87955.0,0.10956]
[1742849119805,0.19677075,87956.0,87955.0,0.11028]
[1742849120515,0.31045025,87956.0,87955.0,0.11028]
[1742849120809,0.19677075,87956.0,87952.0,0.00017052]
[1742849121014,0.4744834,87953.0,87952.0,0.10965052]
[1742849121217,0.47508341,87953.0,87952.0,0.10965052]
[1742849121517,0.48406676,87953.0,87952.0,0.10965052]
[1742849121716,0.59776255,87953.0,87952.0,0.11033052]
[1742849121914,0.59776255,87953.0,87952.0,0.10965052]
[1742849122212,0.59776255,87953.0,87952.0,0.00017052]
[1742849123710,0.113695,87944.0,87943.0,0.0379]
[1742849123906,0.1137041,87937.0,87936.0,0.00068]
[1742849124111,0.11430411,87937.0,87936.0,0.11004]
[1742849124317,0.11430411,87937.0,87936.0,0.1094]
[1742849124318,0.22802253,87937.0,87936.0,0.1094]
[1742849124528,0.23700588,87937.0,87936.0,0.1094]
[1742849124722,0.22802253,87937.0,87936.0,0.1094]
[1742849125021,0.30092253,87937.0,87936.0,0.1094]
[1742849125216,0.30092253,87937.0,87926.0,0.1908179]
[1742849125217,0.18721843,87937.0,87926.0,0.0771]
[1742849125417,0.474517,87927.0,87926.0,0.10952]
[1742849125816,0.1137222,87923.0,87922.0,0.0742]
[1742849126025,0.11432221,87923.0,87922.0,0.10952]
[1742849126317,0.1137261,87920.0,87919.0,0.00045496]
[1742849126620,0.3616,87920.0,87902.0,0.10952]
[1742849126811,0.3608,87909.0,87903.0,0.09105504]
[1742849127015,0.0729,87908.0,87903.0,0.09105504]
[1742849127215,0.07362,87908.0,87903.0,0.09105504]
[1742849127415,0.11375787,87907.0,87904.0,0.0718]
[1742849127619,0.11375787,87907.0,87903.0,0.00045504]
[1742849127620,0.1137468,87904.0,87903.0,0.00045504]
[1742849127823,0.1144668,87904.0,87903.0,0.00109504]
[1742849128119,0.12342697,87904.0,87903.0,0.00109504]
[1742849128327,0.23718484,87904.0,87903.0,0.00109504]
[1742849128625,0.12343804,87904.0,87903.0,0.00109504]
[1742849129327,0.19873804,87904.0,87903.0,0.00109504]
[1742849129824,0.18977787,87904.0,87903.0,0.00109504]
[1742849130621,0.18977787,87904.0,87903.0,0.00045504]
[1742849130920,0.30352467,87904.0,87903.0,0.00045504]
[1742849131523,0.18977787,87904.0,87903.0,0.00045504]
[1742849132519,0.11447787,87904.0,87903.0,0.83205504]
[1742849132717,0.00866083,87951.0,87903.0,1.19289504]
[1742849132917,0.3608,87953.0,87939.0,0.3608]
[1742849133122,0.21286704,87940.0,87939.0,1.35172]
[1742849133322,0.21218704,87940.0,87939.0,0.60172]
[1742849133520,0.32658158,87940.0,87939.0,0.47172]